Cogmind - Beta 15 @@@ ROGUE MODE // 2025.05.19 @ 23:34:59 Player: Epsilon 11 Result: Destroyed by G-34 Mercenary with Small Laser Performance ------------- Evolutions (0) 0 Regions Visited (4) 800 Robots Destroyed (5) 25 Value Destroyed (69) 69 Prototype IDs (23) 460 Alien Tech Used (0) 0 Bonus (300) 300 TOTAL SCORE: 1654 Bonus ------- Aligned with FarCom 300 Cogmind --------- Core Integrity 0/250 Matter 268/300 Energy 350/350 System Corruption 1% Temperature Cool (6) Movement Rolling (140) Ox4 Location -9/Mines Parts ------- > --- POWER (1) -------- (None) > --- PROPULSION (2) --- Wheel Wheel > --- UTILITY (2) ------ Huge Storage Unit High-capacity Battery > --- WEAPON (2) ------- Particle Gun Rocket Launcher > --- INVENTORY (25) --- Improved Treads Improved Treads Improved Treads Improved Treads Small Battery (100) High-capacity Battery (250) High-capacity Battery (250) Medium Matter Pod (100) Medium Matter Pod (100) Large Matter Pod (150) Large Matter Pod (150) Large Matter Pod (150) High-capacity Matter Pod (200) High-capacity Matter Pod (200) Terrain Scanner Terrain Scan Processor Cloak of Protection Particle Gun Flail Peak State ------------ > --- POWER ------------ Ion Engine > --- PROPULSION ------- Wheel Compact Wheel > --- UTILITY ---------- Huge Storage Unit High-capacity Battery > --- WEAPON ----------- Particle Gun Particle Gun > --- INVENTORY -------- Nuclear Core Reinforced Deuterium Engine Light Fission Core Improved Treads Improved Treads Improved Treads Improved Treads Small Battery High-capacity Battery High-capacity Battery Medium Matter Pod Medium Matter Pod Large Matter Pod Large Matter Pod Large Matter Pod High-capacity Matter Pod High-capacity Matter Pod Cloak of Protection Particle Gun Particle Gun Flail [Rating: 13] Favorites ----------- Power Ion Engine Engine Ion Engine Propulsion Wheel Treads Improved Treads Wheel Wheel Utility Huge Storage Unit Storage Huge Storage Unit Weapon Particle Gun Energy Gun Particle Gun Launcher Rocket Launcher Impact Weapon Flail Build | -11 -10 -10 -10 -9 ------- Run | Yrd Mat Min Exi Min Slots Evolved . | . . . . . Power . | . . . . . Propulsion . | . . . . . Utility . | . . . . . Weapon . | . . . . . Parts Attached 16 | 4 3 3 . 6 Power 1 | 1 . . . . Engine 1 | 1 . . . . Core . | . . . . . Reactor . | . . . . . Propulsion 6 | 2 . 2 . 2 Treads 2 | . . 2 . . Leg . | . . . . . Wheel 4 | 2 . . . 2 Hover . | . . . . . Flight . | . . . . . Utility 3 | 1 1 . . 1 Device . | . . . . . Storage 3 | 1 1 . . 1 Processor . | . . . . . Hackware . | . . . . . Protection . | . . . . . Artifact . | . . . . . Weapon 6 | . 2 1 . 3 Energy Gun 4 | . 2 . . 2 Energy Cannon . | . . . . . Ballistic Gun . | . . . . . Ballistic Cannon . | . . . . . Launcher 1 | . . . . 1 Special Weapon . | . . . . . Impact Weapon 1 | . . 1 . . Slashing Weapon . | . . . . . Piercing Weapon . | . . . . . Special Melee Weapon . | . . . . . Unidentified Prototypes . | . . . . . Parts Lost 5 | . . . . 5 Power 1 | . . . . 1 Propulsion 2 | . . . . 2 Utility . | . . . . . Weapon 2 | . . . . 2 Highest Loss Streak 5 | . . . . 5 To Critical Strikes . | . . . . . Average Backups 12 | . 5 7 13 21 Power 1 | . . . 2 2 Propulsion 3 | . 2 4 4 4 Utility 3 | . . . 2 12 Weapon 3 | . 2 3 3 3 Tool/Special . | . . . . . Unused Backups 18 | . . . . 18 Power 3 | . . . . 3 Propulsion 2 | . . . . 2 Utility 13 | . . . . 13 Weapon . | . . . . . Tool/Special . | . . . . . Average Slot Usage (%) 83 | . 81 95 73 91 Engine 13 | . 14 14 14 10 Wheel 26 | . 28 25 28 24 Storage 19 | . 14 23 15 28 Energy Gun 14 | . 24 23 1 25 Impact Weapon 7 | . . 4 14 . Peak Build Rating 13 | 4 10 12 10 13 Average Rating 9 | 3 8 9 8 12 On Entrance 6 | . 4 9 10 10 Naked Turns . | . . . . . Heaviest Build 96 | 10 91 96 95 95 Greatest Support 26 | 26 26 26 26 26 Greatest Overweight (x) 29 | . 3 3 3 29 Average Overweight (x) 2 | . 1 3 3 3 Largest Inventory Capacity 25 | 8 25 25 25 25 Average Capacity 23 | 6 15 25 25 25 Most Carried 24 | . 8 8 23 24 Average Carried 12 | . 5 7 13 21 Final Capacity 25 | 8 25 25 25 25 Final Carried 23 | . 8 7 23 19 Class Distribution -------------------- 100% | Mutant Dominant Class ---------------- Mutant | -10/Materials Mutant | -10/Mines Mutant | -10/Exiles Mutant | -9/Mines Resources | -11 -10 -10 -10 -9 ----------- Run | Yrd Mat Min Exi Min Matter Collected 478 | 176 29 204 . 69 Remotely . | . . . . . Salvage Created 108 | . 37 . . 71 Parts 9 | . 4 . . 5 Haulers Intercepted . | . . . . . Recyclers Shooed . | . . . . . Parts Field Recycled . | . . . . . Retrieved Matter . | . . . . . Parts Self-Destructed . | . . . . . Prevented . | . . . . . Kills | -11 -10 -10 -10 -9 ------- Run | Yrd Mat Min Exi Min Combat Hostiles Destroyed 4 | . 3 . . 1 Guns 4 | . 3 . . 1 Classes Destroyed 3 | . 1 . . 2 Builder 1 | . . . . 1 Swarmer 3 | . 3 . . . Grunt 1 | . . . . 1 Best Kill Streak 3 | . 3 . . 1 Combat Bots Only 3 | . 3 . . 1 Max Kills in Single Turn 1 | . 1 . . 1 Gunslinging . | . . . . . Exploded . | . . . . . Melee . | . . . . . Uniques/NPCs Destroyed . | . . . . . Combat | -11 -10 -10 -10 -9 -------- Run | Yrd Mat Min Exi Min Hostile Shots Fired 74 | . 23 . . 51 Missed 21 | . 8 . . 13 Hits 53 | . 15 . . 38 Projectile 53 | . 15 . . 38 Damage Taken 644 | . 121 . . 523 Core 259 | . 19 . . 240 Absorbed by Shields . | . . . . . Core Remaining (%) 100 | 100 . . . . Volleys Fired 20 | . 9 3 . 8 Largest 2 | . 2 2 . 2 Hottest 130 | . 130 130 . 130 Shots Fired 38 | . 18 6 . 14 Gun 36 | . 18 6 . 12 Cannon . | . . . . . Launcher 2 | . . . . 2 Special . | . . . . . Kinetic . | . . . . . Thermal 36 | . 18 6 . 12 Explosive 2 | . . . . 2 Electromagnetic . | . . . . . Robot Hit Streak 4 | . 2 2 . 4 Robot Miss Streak 3 | . 3 1 . 2 Penetration Max . | . . . . . Secondary Targets 2 | . 2 . . . Max Gunslinging Chain 1 | . 1 . . . Shots Hit Robots 18 | . 7 4 . 7 Core Hits 6 | . 3 . . 3 Critical Kills . | . . . . . Critical Parts Destroyed . | . . . . . Critical Strikes . | . . . . . Melee Attacks 2 | . . 2 . . Impact 2 | . . 2 . . Slashing . | . . . . . Piercing . | . . . . . Sneak Attacks . | . . . . . Combat Hostiles . | . . . . . Follow-up Attacks . | . . . . . Damage Inflicted 423 | . 126 57 . 240 Guns 295 | . 126 57 . 112 Cannons . | . . . . . Explosions 128 | . . . . 128 Melee . | . . . . . Ramming . | . . . . . Kinetic . | . . . . . Thermal 295 | . 126 57 . 112 Explosive 128 | . . . . 128 Electromagnetic . | . . . . . Impact . | . . . . . Slashing . | . . . . . Piercing . | . . . . . Highest Corruption 1 | . 1 1 1 1 Average Corruption 1 | . 1 1 1 1 Corruption Purged . | . . . . . Corruption Blocked . | . . . . . Effects 13 | . 2 5 3 3 Message Errors 1 | . . . . 1 Matter Fused 4 | . 1 2 1 . Heat Flow Errors 4 | . 1 2 1 . Energy Discharges 1 | . . . 1 . Parts Rejected 1 | . . . . 1 Data Loss (minor) 1 | . . . . 1 Data Loss (major) 1 | . . 1 . . Overload Shots . | . . . . . Overflow Damage . | . . . . . Projectiles . | . . . . . Explosions . | . . . . . Melee . | . . . . . Knockbacks . | . . . . . Impact . | . . . . . Kinetic . | . . . . . Secondary . | . . . . . Self-Inflicted Damage . | . . . . . Shots . | . . . . . Rammed . | . . . . . Targets Rammed . | . . . . . Kicked . | . . . . . Crushed . | . . . . . Highest Temperature 571 | . 571 108 246 174 Average Temperature 159 | . 267 47 133 62 Received Heat Transfer 228 | . . . . 228 Effects 6 | . 5 . 1 . Shutdowns 2 | . 2 . . . Interference 2 | . 1 . 1 . Matter Decay 1 | . 1 . . . Damage (minor) 1 | . 1 . . . Siege Activations . | . . . . . Martial Activations . | . . . . . Shielding Activations . | . . . . . Robots Disrupted . | . . . . . Combat Hostiles . | . . . . . Robots Corrupted . | . . . . . Combat Hostiles . | . . . . . Parts Fried . | . . . . . Impact Corruptions . | . . . . . Robots Melted . | . . . . . Combat Hostiles . | . . . . . Parts Melted 1 | . 1 . . . Heat Transferred 703 | . 296 148 . 259 Parts Sabotaged . | . . . . . Parts Stolen . | . . . . . Parts Stripped . | . . . . . Power Chain Reactions . | . . . . . Alert | -11 -10 -10 -10 -9 ------- Run | Yrd Mat Min Exi Min Maximum Alert Level . | . . . . . Low Security (%) 100 | 100 100 100 . 100 Level 1 . | . . . . . Level 2 . | . . . . . Level 3 . | . . . . . Level 4 . | . . . . . Level 5 . | . . . . . High Security . | . . . . . Max Security . | . . . . . Peak Influence 60 | . 60 . . 15 Initial . | . . . . . Average 6 | . 27 . . 1 Influence Increases 129 | . 84 . . 45 Destroy 0b10 Robot/C 80 | . 60 . . 20 Destroy 0b10 Robot/NC 5 | . . . . 5 Destroy Leader 10 | . 10 . . . Successful Hack 14 | . 14 . . . Destroy Structure 5 | . . . . 5 Lose Combat Pursuer 15 | . . . . 15 Influence Decreases 119 | . 84 . . 35 Time Decay 119 | . 84 . . 35 Squads Dispatched 1 | . 1 . . . Investigation 1 | . 1 . . . Extermination . | . . . . . Reinforcement . | . . . . . Assault . | . . . . . Garrison . | . . . . . Intercept . | . . . . . Searches Triggered . | . . . . . Construction Impeded . | . . . . . Haulers Reinforced . | . . . . . Active Scanning Responses . | . . . . . Cargo Convoy Interrupts . | . . . . . Stealth | -11 -10 -10 -10 -9 --------- Run | Yrd Mat Min Exi Min Distress Signals . | . . . . . Communications Jammed . | . . . . . Distress Signals . | . . . . . Times Spotted 15 | . 7 . . 8 Peak Tracking Total 5 | . 4 . . 5 Tactical Retreats 1 | . . . . 1 Traps | -11 -10 -10 -10 -9 ------- Run | Yrd Mat Min Exi Min Traps Triggered 2 | . 2 . . . Indirectly . | . . . . . Trap Hack Attempts . | . . . . . Triggered . | . . . . . Disarmed . | . . . . . Reprogrammed . | . . . . . Reused . | . . . . . Traps Extracted . | . . . . . Installed . | . . . . . Triggered . | . . . . . Machines | -11 -10 -10 -10 -9 ---------- Run | Yrd Mat Min Exi Min Machines Disabled . | . . . . . Max in Single Turn . | . . . . . Machines Repaired . | . . . . . Machines Dismantled . | . . . . . Machines Sabotaged . | . . . . . Overloaded Fab Kills . | . . . . . Hacking | -11 -10 -10 -10 -9 --------- Run | Yrd Mat Min Exi Min Machines Accessed 5 | . 3 . 2 . Terminals 3 | . 3 . . . Fabricators . | . . . . . Repair Stations . | . . . . . Recycling Units . | . . . . . Scanalyzers . | . . . . . Garrison Access . | . . . . . Total Hacks 13 | . 9 . 4 . Successful 8 | . 4 . 4 . Failed 5 | . 5 . . . Catastrophic . | . . . . . Database Lockouts . | . . . . . Manual 9 | . 8 . 1 . Terminals 9 | . 9 . . . Fabricators . | . . . . . Repair Stations . | . . . . . Recycling Units . | . . . . . Scanalyzers . | . . . . . Garrison Access . | . . . . . Terminal Hacks 4 | . . . 4 . Record 3 | . . . 3 . Proto ID Catalog 1 | . . . 1 . Fabricator Hacks . | . . . . . Repair Station Hacks . | . . . . . Recycling Unit Hacks . | . . . . . Scanalyzer . | . . . . . Garrison Access Hacks . | . . . . . Unauthorized Hacks 4 | . 4 . . . Terminals 4 | . 4 . . . Botnet 1 | . 1 . . . Operators 1 | . 1 . . . Skim 2 | . 2 . . . Fabricators . | . . . . . Repair Stations . | . . . . . Recycling Units . | . . . . . Scanalyzers . | . . . . . Garrison Access . | . . . . . Data Cores Recovered . | . . . . . Used . | . . . . . Hacking Detections 3 | . 3 . . . Full Trace Events . | . . . . . Feedback Events . | . . . . . Feedback Blocked . | . . . . . Robot Schematics Acquired . | . . . . . Robots Built . | . . . . . Authchips . | . . . . . Time . | . . . . . Total Robot Build Rating . | . . . . . Part Schematics Acquired . | . . . . . Parts Built . | . . . . . Authchips . | . . . . . Time . | . . . . . Total Part Build Rating . | . . . . . Parts Repaired . | . . . . . Time . | . . . . . Parts Recycled . | . . . . . Recycled Matter . | . . . . . Retrieved Matter . | . . . . . Retrieved Components . | . . . . . Parts Scanalyzed . | . . . . . Part Schematics Acquired . | . . . . . Parts Damaged . | . . . . . Bothacking | -11 -10 -10 -10 -9 ------------ Run | Yrd Mat Min Exi Min Used RIF Installer . | . . . . . Robots Hacked . | . . . . . Non-combat . | . . . . . Combat . | . . . . . Robot Hacks Applied . | . . . . . Relay Couplers Released . | . . . . . Fabnet Peak Effective % . | . . . . . Robots Rewired . | . . . . . Allies Hacked . | . . . . . Hacks Repelled . | . . . . . Allies | -11 -10 -10 -10 -9 -------- Run | Yrd Mat Min Exi Min Total Allies . | . . . . . Largest Group . | . . . . . Highest-Rated Group . | . . . . . Highest-Rated Ally . | . . . . . Total Orders . | . . . . . Ally Attacks . | . . . . . Total Damage . | . . . . . Kills . | . . . . . Allies Corrupted . | . . . . . Allies Melted . | . . . . . Intel | -11 -10 -10 -10 -9 ------- Run | Yrd Mat Min Exi Min Active Infowar (turns) . | . . . . . Robot Analysis Total . | . . . . . Derelict Logs Recovered 4 | . . 3 . 1 Drone Launches . | . . . . . Drone Recoveries . | . . . . . Exploration | -11 -10 -10 -10 -9 ------------- Run | Yrd Mat Min Exi Min Turns Passed 1722 | 34 215 378 723 372 Spaces Moved 1073 | 32 149 227 524 141 Core 3 | 1 . . . 2 Treads . | . . . . . Legs . | . . . . . Wheels 1070 | 31 149 227 524 139 Hover . | . . . . . Flight . | . . . . . Fastest Speed 50 | 50 90 135 135 135 Average Speed 133 | 87 111 135 135 156 Slowest Speed 1500 | 90 135 135 135 1500 Overloaded Moves . | . . . . . Propulsion Burnouts . | . . . . . Robots Hopped . | . . . . . Potential Cave-ins . | . . . . . Cave-ins Triggered . | . . . . . Exploration Rate (%) 36 | 4 29 47 72 29 Regions Visited 4 Branch Regions 3 Pre-discovered Areas 3 | . . 2 1 . Known Exits Taken . | . . . . . Unknown Exits Taken 4 | 1 1 1 1 . Scrap Searched 1 | . . 1 . . Spaces Dug . | . . . . . Terrain Destroyed 13 | . . . . 13 Melee . | . . . . . Projectile . | . . . . . AOE 13 | . . . . 13 Terrain Rammed . | . . . . . Walls Destroyed . | . . . . . Machines Disabled . | . . . . . Actions | -11 -10 -10 -10 -9 --------- Run | Yrd Mat Min Exi Min Total 1319 | 35 179 286 540 279 Wait 173 | . 11 47 . 115 Move 1069 | 31 148 226 523 141 Hop . | . . . . . Pick Up 25 | . 7 . 15 3 Fast Attach 10 | 4 3 . . 3 Attach 5 | . . 1 . 4 Detach 2 | . 1 . 1 . Swap 9 | . . 7 . 2 Drop 4 | . . . 1 3 Fire 20 | . 9 3 . 8 Melee 2 | . . 2 . . Ram . | . . . . . Kick . | . . . . . Crush . | . . . . . Escape Stasis . | . . . . . Rewire . | . . . . . Trap . | . . . . . Miscellaneous . | . . . . . Route ------- -11/Scrapyard -10/Materials -10/Mines (discovered 2 exits: [*Mat] / *Exi) -10/Exiles (discovered 2 exits: [*Min x2]) -9/Mines History --------- Turn | Location | Event 24 | -11/Scrapyard | Discovered new exit (range 12) 35 | -11/Scrapyard | Entered Materials 196 | -10/Materials | Discovered new exit (range 7) 250 | -10/Materials | Entered Mines 260 | -10/Mines | Met a Derelict bent on vengeance 286 | -10/Mines | Learned Materials security intel 310 | -10/Mines | Build established: Mutant 316 | -10/Mines | Learned location of Zion (-7) 343 | -10/Mines | Excavation squad dispatched 343 | -10/Mines | A large section of the Mines collapsed 437 | -10/Mines | Discovered new exit (range 7) 621 | -10/Mines | Deemed a non-threat by the Exiles lab entrance 623 | -10/Mines | Discovered new exit (range 5) 628 | -10/Mines | Entered Exiles 646 | -10/Exiles | Discovered new exit (range 15) 662 | -10/Exiles | Met 8R-AWN 685 | -10/Exiles | Met EX-HEX 827 | -10/Exiles | Met EX-DEC 939 | -10/Exiles | Met EX-BIN 955 | -10/Exiles | Aligned with FarCom system 956 | -10/Exiles | Given EX-Vault access code 992 | -10/Exiles | Opened EX-Vault 1001 | -10/Exiles | Found Cloak of Protection 1030 | -10/Exiles | Warned to stay clear of 0b10 Research branches 1336 | -10/Exiles | Discovered new exit (range 14) 1351 | -10/Exiles | Left Exiles lab with Cloak of Protection 1351 | -10/Exiles | Entered Mines 1512 | -9/Mines | Learned Materials trap positions 1517 | -9/Mines | Received a Rocket Launcher from a helpful Derelict 1650 | -9/Mines | Core integrity fell below 50% 1654 | -9/Mines | Core integrity fell below 20% 1680 | -9/Mines | Lost 5 parts (1p2n2w) 1723 | -9/Mines | Destroyed by G-34 Mercenary with Small Laser Last Messages --------------- 01653_ G-34 Mercenary destroyed. 01653_ U-05 Engineer destroyed. 01653_ K-01 Serf collects debris. 01664_ Destroyed Sml. Laser. 01664_ K-01 Serf collects debris. 01670_ G-34 Mercenary destroyed. 01670_ K-01 Serf collects debris. 01688_ Acquired Wheel. 01689_ Acquired 10 matter. 01689_ K-01 Serf collects debris. 01695_ Acquired Wheel. 01695_ K-01 Serf collects debris. 01697_ Acquired 30 matter. 01697_ K-01 Serf collects debris. 01711_ R-06 Scavenger collects Aluminum Leg. 01715_ K-01 Serf collects debris. 01717_ R-06 Scavenger collects Terrain Scan Processor. 01719_ K-01 Serf collects debris. 01720_ R-06 Scavenger collects Aluminum Leg. 01722_ K-01 Serf collects debris. Map ----- +----------------------------------------------------+ | ?????????????????????????????????????????????# | | ?????????????????????????????????????????????# | | ?????????????????###?????????????????????????# | | ????????????????? #????????????????????????### # | | ?????????????????? #??????????##?????????????# # | | ?????????????????? ???????### ##?????????#### # | | ?????????????????? ??????## #???####### | | ?????????????????? #??????# #???# """ | | ?????????????????? ##?????# #????# #### """ | | ??????????????????# ####### #????# #??# """ | | ??????????????????# ## g ##????# #??# | | ??????????????????# ## ### #????# #??#### | | ??????????????????# ## #?## #????# #?????# | | ??????????????????# ?# #??### #??### ##????# | | ??????????????????# ###|#????# #?## ##???# | | ??????????????????# =#????# ### ##### | | ?????????????????## #####????# ## | | ????????????????## g ?????## #### | | ???????????????## g ##????# #??##### | | ???????????????# g #????# #??????### | | ???????????????# ##???# #?####???##### | | ???????????????## % #???# ### ####????## | | ????????????????# % = #???# ## ##????# | | ????????????????## r #???# #????# | | ?????????????????##; !%= #???#### #????# | | ??????????????????### | @##??????## #????# | | ????????????????????# ;#????????### #????## | | ????????????????????# ##???????????# #????# | | ????????????????????#k #?????????????# #????# | | ???????????????????# #????????????? #???? | | ??????????????????# k #???????????? #??? | | ??????????????????# #????????????? ?? | | ??????????????????# #????????????""" ? | | ??????????????????# #????????????""" | | ??????????????????# ##????????????????? ? | | ??????????????????# ###???????????????????? | | ??????????????????# ##?????????????????????? | | ??????????????????# #??????????????????????? # | | ??????????????????## #????????????????????????? | | ???????????????????# #????????????????????????? | | ???????????????????## ##????????????????????????? | | ?????????????????????##??????????????????????????? | | ?????????????????????????????????????????????????? | | ?????????????????????????????????????????????????? | | ?????????????????????????????????????????????????? | | ?????????????????????????????????????????????????? | | ?????????????????????????????????????????????????? | | ?????????????????????????????????????????????????? | | ?????????????????????????????????????????????????? | | ?????????????????????????????????????????????????? | +----------------------------------------------------+ Best States ------------- Heat Dissipation 25 Energy Generation 10 Energy Capacity 500 Matter Stores 300 Matter Capacity 300 Sight Range 16 Terrain Scan Density 10 Evasion (%) 42 Recoil Reduction 2 Item Schematics ----------------- None Robot Schematics ------------------ None Fabricated ------------ Nothing Repaired ---------- Nothing Alien Tech Used ----------------- None Achievements -------------- None Challenges ------------ None Game ------ Seed ContainmentShiftCapacitor Manual? 0 Play Time 00:16:51 Cumulative 266.2 hours Start 2025.05.19 @ 23:20:26 End 2025.05.19 @ 23:34:59 Sessions 1 Manual Loads 0 Difficulty Rogue Special Mode None Game No. 122 Rogue 79 Adventurer 43 Explorer 0 Win Type - Total 6 Types 4/0/1/0/0/0/0/1/0/0 Lore% 75 Gallery% 69 Achievement% 64 Wizard Run 0 Options --------- Layout 0 ASCII 0 Keyboard 0 Movement Numpad Keybinds 0 Fullscreen 1 Font 24/Smallcaps Map View 76x50 Zoom Use 0% Tactical HUD 1 Map Filters NONE Filters NONE Steam 1 RUN: 531e4fbd-5999-47da-a726-fb3cad0bbb0d